bitfinex-derivatives/quotes_BTCF0:USTF0_20241103
["timestamp","ask_amount","ask_price","bid_price","bid_amount"]
[1730598246403,0.14419385,69179.0,69178.0,0.20745091]
[1730598246605,0.072299,69182.0,69181.0,0.072299]
[1730598246999,0.13563263,69182.0,69181.0,0.072299]
[1730598251504,0.10022711,69182.0,69181.0,0.072299]
[1730598252704,0.072299,69182.0,69181.0,0.072299]
[1730598257310,0.433099,69182.0,69181.0,0.072299]
[1730598258213,0.032,69185.0,69184.0,0.072296]
[1730598258612,0.104295,69185.0,69184.0,0.072296]
[1730598260604,0.104295,69185.0,69184.0,0.30531405]
[1730598260605,0.06812411,69185.0,69184.0,0.30531405]
[1730598263808,0.06812411,69185.0,69184.0,0.34843046]
[1730598266919,0.3608,69186.0,69184.0,0.34843046]
[1730598267121,0.072295,69185.0,69184.0,0.11541241]
[1730598267316,0.3608,69186.0,69184.0,0.34794726]
[1730598267507,0.433094,69186.0,69185.0,0.30482985]
[1730598267714,0.59265676,69186.0,69185.0,0.072295]
[1730598267913,0.69973057,69186.0,69185.0,0.072295]
[1730598268308,0.54080259,69186.0,69185.0,0.072295]
[1730598269222,0.18000259,69186.0,69185.0,0.072295]
[1730598269519,0.54080259,69186.0,69185.0,0.072295]
[1730598269919,0.18000259,69186.0,69185.0,0.072295]
[1730598270222,0.54080259,69186.0,69185.0,0.072295]
[1730598271717,0.46102121,69186.0,69185.0,0.072295]
[1730598271923,0.54080205,69186.0,69185.0,0.072295]
[1730598272317,0.73720319,69186.0,69182.0,0.1340627]
[1730598272513,0.15956189,69185.0,69184.0,0.072296]
[1730598272718,0.10770805,69185.0,69184.0,0.072296]
[1730598275616,0.072291,69189.0,69184.0,0.23180175]
[1730598275827,0.072291,69189.0,69188.0,0.16351407]
[1730598276026,0.072291,69189.0,69188.0,0.26926489]
[1730598276518,0.072291,69189.0,69188.0,0.26924643]
[1730598280328,0.072291,69189.0,69188.0,0.31218772]
[1730598282535,0.072291,69189.0,69188.0,0.38445804]
[1730598282831,0.17999465,69189.0,69188.0,0.20645536]
[1730598284734,0.54079465,69189.0,69188.0,0.20645536]
[1730598285321,0.49641969,69189.0,69188.0,0.16351407]
[1730598288432,0.54079415,69189.0,69188.0,0.16351407]
[1730598288841,0.68528596,69189.0,69188.0,0.16351407]
[1730598289340,0.54079415,69189.0,69188.0,0.16351407]
[1730598289929,0.5926449,69189.0,69188.0,0.16351407]
[1730598290628,0.433091,69189.0,69188.0,0.19727362]
[1730598290831,0.433091,69189.0,69188.0,0.26956562]
[1730598291642,0.072291,69189.0,69188.0,0.26956562]
[1730598295333,0.0305,69190.0,69188.0,0.19727362]
[1730598295633,0.0305,69190.0,69189.0,0.17834255]
[1730598297655,0.05842458,69190.0,69189.0,0.072291]
[1730598297946,0.13819843,69190.0,69189.0,0.072291]
[1730598299634,0.13819783,69190.0,69189.0,0.072291]
[1730598300238,0.10769783,69190.0,69189.0,0.072291]
[1730598301443,0.14452133,69190.0,69189.0,0.072291]
[1730598301649,0.10769783,69190.0,69189.0,0.072291]
[1730598302844,0.10769206,69190.0,69189.0,0.072291]
[1730598305752,0.15897876,69196.0,69195.0,0.072284]
[1730598305950,0.15897876,69196.0,69195.0,0.26911648]
[1730598306153,0.15897876,69196.0,69195.0,0.35581886]
[1730598306543,0.15897876,69196.0,69195.0,0.26911648]
[1730598306749,0.15897876,69196.0,69195.0,0.26905214]
[1730598307147,0.15897876,69196.0,69195.0,0.16350607]
[1730598307347,0.15897876,69196.0,69195.0,0.26902333]
[1730598309850,0.15897876,69196.0,69195.0,0.16350607]
[1730598310154,0.072265,69214.0,69213.0,0.072266]
[1730598310448,0.0314,69215.0,69214.0,0.072265]
[1730598310649,0.07226,69219.0,69218.0,0.072258]
[1730598310855,0.07226,69219.0,69218.0,0.16348007]
[1730598315160,0.07226,69219.0,69218.0,0.20606861]
[1730598319962,0.07226,69219.0,69218.0,0.16348007]
[1730598320959,0.15948855,69219.0,69209.0,0.43832626]
[1730598321161,0.15948855,69218.0,69217.0,0.09122207]
[1730598322068,0.23175055,69218.0,69217.0,0.072261]
[1730598322262,0.23175055,69218.0,69217.0,0.16348307]
[1730598322763,0.23175055,69218.0,69217.0,0.09122207]
[1730598322959,0.072263,69215.0,69214.0,0.16348607]
[1730598323171,0.23175155,69215.0,69214.0,0.16348607]
[1730598323563,0.23175529,69215.0,69214.0,0.16348607]
[1730598327771,0.17992524,69215.0,69214.0,0.16348607]
[1730598327955,0.072263,69215.0,69214.0,0.16348607]
[1730598328974,0.3608,69217.0,69216.0,0.072262]
[1730598331062,0.103654,69224.0,69216.0,0.072262]
[1730598331259,0.103654,69224.0,69223.0,0.072255]
[1730598335973,0.15947202,69224.0,69223.0,0.00440824]
[1730598336178,0.15947202,69224.0,69223.0,0.103355]
[1730598336365,0.15947202,69224.0,69223.0,0.19457707]
[1730598336569,0.15947202,69224.0,69223.0,0.103355]
[1730598337175,0.15946569,69224.0,69223.0,0.103355]
[1730598338276,0.34713223,69224.0,69223.0,0.103355]
[1730598338876,0.29530755,69224.0,69223.0,0.103355]
[1730598339081,0.15946569,69224.0,69223.0,0.103355]
[1730598339268,0.10764101,69224.0,69223.0,0.103355]
[1730598343080,0.12407268,69230.0,69228.0,0.072249]
[1730598343081,0.072248,69230.0,69228.0,0.072249]
[1730598343285,0.072248,69230.0,69229.0,0.072249]
[1730598345982,0.3608,69231.0,69228.0,0.09122207]
[1730598346187,0.3608,69231.0,69230.0,0.072248]
[1730598346383,0.38870964,69231.0,69230.0,0.072248]
[1730598346584,0.3608,69231.0,69230.0,0.072248]
[1730598347784,0.072239,69238.0,69232.0,0.072246]
[1730598347983,0.072239,69238.0,69232.0,0.16346807]
[1730598349889,0.072241,69237.0,69232.0,0.16346807]
[1730598350681,0.433041,69237.0,69232.0,0.16346807]
[1730598350981,0.16162049,69233.0,69225.0,0.30546167]
[1730598351184,0.15945298,69232.0,69231.0,0.072247]
[1730598351384,0.15945298,69232.0,69231.0,0.16346907]
[1730598352382,0.15945298,69232.0,69225.0,0.4379739]
[1730598352383,0.15945298,69232.0,69225.0,0.04237016]
[1730598352587,0.3608,69226.0,69225.0,0.072253]
[1730598352778,0.52025298,69226.0,69225.0,0.072253]
[1730598354083,0.15945298,69226.0,69225.0,0.072253]
[1730598354682,0.15945298,69226.0,69223.0,0.09122207]
[1730598354877,0.09122207,69224.0,69219.0,0.04251267]
[1730598355082,0.09122207,69224.0,69220.0,0.072258]
[1730598355083,0.3608,69221.0,69220.0,0.072258]
[1730598355391,0.52026753,69221.0,69220.0,0.072258]
[1730598356284,0.15946753,69221.0,69220.0,0.072258]
[1730598356679,0.52026753,69221.0,69220.0,0.072258]
[1730598357081,0.52026753,69221.0,69218.0,0.09122207]
[1730598357379,0.2506896,69220.0,69215.0,0.13527876]
[1730598357683,0.15946753,69219.0,69218.0,0.07226]
[1730598358075,0.15946753,69219.0,69218.0,0.27359875]
[1730598358076,0.072259,69219.0,69218.0,0.27359875]
[1730598359694,0.072259,69219.0,69218.0,0.27359939]
[1730598359878,0.072259,69219.0,69218.0,0.20133939]
[1730598362288,0.072259,69219.0,69218.0,0.11011732]
[1730598363594,0.433059,69219.0,69218.0,0.11011732]
[1730598365183,0.433059,69219.0,69218.0,0.20133939]
[1730598366088,0.433059,69219.0,69218.0,0.14894741]
[1730598366491,0.52428107,69219.0,69216.0,0.05772534]
[1730598366792,0.45202207,69217.0,69214.0,0.05772534]
[1730598366999,0.45202207,69217.0,69202.0,0.072277]
[1730598367000,0.072267,69212.0,69211.0,0.05772534]
[1730598367194,0.072268,69211.0,69210.0,0.05772534]
[1730598367393,0.3928,69211.0,69207.0,0.05772534]
[1730598367700,0.465068,69211.0,69210.0,0.04329648]
[1730598367882,0.3928,69211.0,69207.0,0.05772534]
[1730598368196,0.3928,69211.0,69204.0,0.05989284]
[1730598368197,0.072274,69205.0,69204.0,0.05989284]
[1730598368499,0.072274,69205.0,69204.0,0.0021675]
[1730598368699,0.16349607,69205.0,69204.0,0.04545259]
[1730598368906,0.16349607,69205.0,69204.0,0.0021675]
[1730598369200,0.072274,69205.0,69204.0,0.0021675]
[1730598370998,0.072274,69205.0,69204.0,0.0744425]
[1730598373202,0.10019062,69205.0,69204.0,0.0744425]
[1730598375797,0.10019062,69205.0,69204.0,0.0021675]
[1730598376202,0.13249062,69205.0,69204.0,0.0021675]
[1730598377307,0.16788225,69205.0,69204.0,0.0021675]
[1730598377693,0.2122447,69205.0,69204.0,0.0021675]
[1730598378292,0.25461075,69205.0,69204.0,0.0021675]
[1730598379811,0.68809075,69205.0,69204.0,0.0021675]
[1730598380600,0.77905075,69205.0,69204.0,0.0021675]
[1730598380898,0.77906026,69205.0,69204.0,0.0021675]
[1730598381097,0.67138005,69205.0,69204.0,0.0021675]
[1730598381497,0.67138005,69205.0,69204.0,0.05989284]
[1730598381797,1.39298005,69205.0,69204.0,0.05989284]
[1730598382412,0.67138005,69205.0,69204.0,0.05989284]
[1730598382797,0.826174,69205.0,69204.0,0.05989284]
[1730598382999,0.072276,69204.0,69203.0,0.072275]
[1730598385919,0.072276,69204.0,69203.0,0.11517269]
[1730598386604,0.433076,69204.0,69203.0,0.11517269]
[1730598387999,0.3608,69204.0,69203.0,0.22531313]
[1730598388198,0.42411082,69204.0,69203.0,0.11517269]
[1730598388399,0.06331082,69204.0,69203.0,0.11517269]
[1730598388598,0.06331082,69204.0,69203.0,0.11517369]
[1730598388823,0.06331082,69204.0,69203.0,0.40369769]
[1730598389109,0.06331082,69204.0,69203.0,0.47597369]
[1730598390008,0.072265,69214.0,69213.0,0.072266]
[1730598390206,0.17992577,69214.0,69213.0,0.072266]
[1730598392311,0.32425043,69214.0,69213.0,0.072266]
[1730598393208,0.25198543,69214.0,69213.0,0.072266]
[1730598393512,0.10766077,69214.0,69213.0,0.072266]
[1730598395216,0.09122207,69215.0,69214.0,0.072265]
[1730598396004,0.09122207,69215.0,69214.0,0.11555349]
[1730598396210,0.09122207,69215.0,69214.0,0.072265]
[1730598398610,0.45202207,69215.0,69214.0,0.072265]
[1730598398918,0.52428507,69215.0,69214.0,0.072265]
[1730598399420,0.16348507,69215.0,69214.0,0.072265]
[1730598399608,0.52428507,69215.0,69214.0,0.072265]
[1730598401416,0.072268,69211.0,69210.0,0.12993071]
[1730598401620,0.16349007,69211.0,69210.0,0.12993071]
[1730598401912,0.52429007,69211.0,69210.0,0.12993071]
[1730598402417,0.45202207,69211.0,69210.0,0.072267]
[1730598404425,0.45202207,69211.0,69210.0,0.12993071]
[1730598404628,0.45202207,69211.0,69210.0,0.072267]
[1730598405310,0.45202207,69211.0,69210.0,0.12993071]
[1730598405919,0.09122207,69211.0,69210.0,0.12993071]
[1730598406117,0.09122207,69211.0,69210.0,0.11641592]
[1730598406619,0.16349007,69211.0,69210.0,0.072267]
[1730598408418,0.52429007,69211.0,69210.0,0.05766371]
[1730598408625,0.072271,69208.0,69207.0,0.12993471]
[1730598408820,0.072271,69208.0,69207.0,0.072271]
[1730598410327,0.1355771,69208.0,69207.0,0.072271]
[1730598414021,0.17993622,69208.0,69207.0,0.072271]
[1730598414832,0.1355771,69208.0,69207.0,0.072271]
[1730598415622,0.1671771,69208.0,69207.0,0.072271]
[1730598418219,0.103871,69208.0,69207.0,0.072271]
[1730598419638,0.103871,69208.0,69207.0,0.13005526]
[1730598422419,0.103871,69208.0,69207.0,0.05778426]
[1730598422623,0.072273,69206.0,69205.0,0.05778426]
[1730598422825,0.16349507,69206.0,69205.0,0.05778426]
[1730598423821,0.09122207,69206.0,69204.0,0.05778426]
[1730598424031,0.072275,69204.0,69203.0,0.05778426]
[1730598424434,0.16349707,69204.0,69203.0,0.05778426]
[1730598424637,0.09122207,69204.0,69200.0,0.05778426]
[1730598424834,0.54324414,69201.0,69199.0,0.05778426]
[1730598425137,0.07228,69199.0,69198.0,0.05778426]
[1730598425438,0.07228,69199.0,69194.0,0.07207964]
[1730598425439,0.072285,69195.0,69194.0,0.072283]
[1730598425730,0.17996431,69195.0,69194.0,0.072283]
[1730598425935,0.23180435,69195.0,69194.0,0.072283]
[1730598427943,0.15951935,69195.0,69194.0,0.072283]
[1730598428126,0.15951935,69195.0,69194.0,0.16350507]
[1730598428439,0.10767931,69195.0,69194.0,0.16350507]
[1730598428638,0.10767931,69195.0,69194.0,0.072283]
[1730598430241,0.10767788,69195.0,69194.0,0.072285]
[1730598430535,0.18667659,69195.0,69194.0,0.072285]
[1730598430739,0.26643522,69195.0,69194.0,0.072285]
[1730598431942,0.10767788,69195.0,69194.0,0.16350707]
[1730598432147,0.10767788,69195.0,69194.0,0.3799941]
[1730598433343,0.10767788,69195.0,69194.0,0.8135541]
[1730598434243,0.10767788,69195.0,69194.0,0.3799941]
[1730598434434,0.10767788,69195.0,69194.0,0.8135541]
[1730598434944,0.10767788,69195.0,69194.0,1.1743541]
[1730598435348,0.10767788,69195.0,69194.0,0.8135541]
[1730598435534,0.15877644,69198.0,69194.0,1.57484858]
[1730598435837,0.15877644,69198.0,69197.0,0.16350407]
[1730598436439,0.3608,69216.0,69215.0,0.072263]
[1730598436639,0.3608,69216.0,69215.0,0.16348507]
[1730598436845,0.3608,69216.0,69215.0,0.072263]
[1730598438844,0.3608,69216.0,69215.0,0.2073002]
[1730598441146,0.3616,69224.0,69215.0,0.1350372]
[1730598441354,0.3608,69224.0,69223.0,0.072255]
[1730598442459,0.433054,69224.0,69223.0,0.072255]
[1730598444039,0.072254,69224.0,69223.0,0.072255]
[1730598444252,0.433054,69224.0,69223.0,0.072255]
[1730598445057,0.072254,69224.0,69223.0,0.072255]
[1730598446742,0.07226,69219.0,69212.0,0.072266]
[1730598446956,0.15452207,69218.0,69212.0,0.072266]
[1730598447750,0.15452207,69218.0,69217.0,0.072261]
[1730598449562,0.0633,69218.0,69217.0,0.072261]
[1730598450060,0.0306,69218.0,69217.0,0.16348307]
[1730598450495,0.0306,69218.0,69217.0,0.20751022]
[1730598451893,0.39690361,69224.0,69223.0,0.072255]
[1730598452076,0.39690361,69224.0,69223.0,0.18236911]
[1730598452270,0.39690361,69224.0,69223.0,0.14423624]
[1730598452676,0.39690361,69224.0,69223.0,0.25435104]
[1730598452872,0.39690361,69224.0,69223.0,0.14423624]
[1730598453375,0.39690361,69224.0,69223.0,0.25435195]
[1730598453860,0.39690361,69224.0,69223.0,0.14423624]
[1730598454368,0.39690361,69224.0,69223.0,0.25435031]
[1730598454557,0.32464961,69224.0,69223.0,0.14423624]
[1730598455255,0.32464961,69224.0,69223.0,0.25435026]
[1730598456166,0.32464961,69224.0,69223.0,0.18236902]
[1730598456352,0.38794551,69224.0,69223.0,0.072255]
[1730598457364,0.46019951,69224.0,69223.0,0.072255]
[1730598458165,0.50455149,69224.0,69223.0,0.072255]
[1730598458365,0.46019951,69224.0,69223.0,0.072255]
[1730598460559,0.07226,69220.0,69219.0,0.072259]
[1730598460760,0.07226,69220.0,69210.0,0.52429007]
[1730598460761,0.072264,69216.0,69215.0,0.072263]
[1730598460958,0.27113519,69216.0,69215.0,0.072263]
[1730598462163,0.32296348,69216.0,69215.0,0.072263]
[1730598462364,0.32296949,69216.0,69215.0,0.072263]
[1730598463163,0.43011992,69216.0,69215.0,0.072263]
[1730598463363,0.2711412,69216.0,69215.0,0.072263]
[1730598464467,0.16348607,69216.0,69215.0,0.57337273]
[1730598464664,0.16348607,69216.0,69215.0,0.57337274]
[1730598465267,0.072264,69216.0,69215.0,0.41756645]
[1730598465968,0.072264,69216.0,69215.0,0.31642008]
[1730598466975,0.072264,69216.0,69215.0,0.31642089]
[1730598469762,0.16348607,69216.0,69215.0,0.40011485]
[1730598469966,0.16348607,69216.0,69215.0,0.24415789]
[1730598470577,0.16348607,69216.0,69215.0,0.19425789]
[1730598471274,0.25470814,69216.0,69215.0,0.19425789]
[1730598471482,0.072271,69208.0,69207.0,0.072272]
[1730598471664,0.13557681,69208.0,69207.0,0.072272]
[1730598478094,0.072274,69205.0,69204.0,0.04284217]
[1730598478289,0.072275,69204.0,69203.0,0.072276]
[1730598478588,0.10019084,69204.0,69203.0,0.072276]
[1730598479090,0.10019084,69204.0,69203.0,0.11670186]
[1730598479495,0.0314,69207.0,69203.0,0.58252528]
[1730598479680,0.0314,69207.0,69206.0,0.11544073]
[1730598479877,0.12262207,69207.0,69206.0,0.40426541]
[1730598480090,0.19489407,69207.0,69206.0,0.40426541]
[1730598480293,0.19489407,69207.0,69206.0,0.34275242]
[1730598480592,0.19489407,69207.0,69206.0,0.36084522]
[1730598481783,0.072272,69207.0,69206.0,0.36084522]
[1730598482889,0.072272,69207.0,69206.0,0.47628595]
[1730598485095,0.3608,69210.0,69209.0,0.07227]
[1730598485096,0.43307,69210.0,69209.0,0.07227]
[1730598485297,0.07227,69210.0,69209.0,0.36084222]
[1730598485505,0.07227,69210.0,69209.0,0.58640821]
[1730598486309,0.07227,69210.0,69209.0,0.47096748]
[1730598486503,0.07227,69210.0,69209.0,0.31592879]
[1730598487705,0.394,69219.0,69209.0,0.31592879]
[1730598487706,0.072265,69214.0,69213.0,0.072264]
[1730598487900,0.072265,69214.0,69213.0,0.18238847]
[1730598489298,0.072265,69214.0,69213.0,0.31397858]
[1730598489601,0.072265,69214.0,69213.0,0.18238847]
[1730598490608,0.072265,69214.0,69213.0,0.3140052]
[1730598491202,0.072265,69214.0,69213.0,0.18238847]
[1730598491900,0.072265,69214.0,69213.0,0.22521478]
[1730598492406,0.072265,69214.0,69213.0,0.22521526]
[1730598494203,0.072265,69214.0,69213.0,0.22521475]
[1730598494406,0.23175138,69214.0,69213.0,0.11509031]
[1730598494606,0.17992203,69214.0,69213.0,0.11509031]
[1730598494809,0.23175138,69214.0,69213.0,0.11509031]
[1730598495018,0.33862871,69214.0,69213.0,0.11509031]
[1730598495206,0.26636371,69214.0,69213.0,0.11509031]
[1730598495407,0.10765703,69214.0,69213.0,0.11509031]
[1730598496909,0.15948114,69214.0,69213.0,0.11509231]
[1730598497110,0.1076537,69214.0,69213.0,0.11509231]
[1730598498504,0.2664951,69214.0,69213.0,0.11509231]
[1730598498707,0.1076537,69214.0,69213.0,0.11509231]
[1730598501522,0.1588414,69216.0,69215.0,0.072263]
[1730598501721,0.1588414,69216.0,69215.0,0.31381787]
[1730598503617,0.1588414,69216.0,69215.0,0.40503994]
[1730598503813,0.1588414,69216.0,69215.0,0.2735944]
[1730598504019,0.1588414,69216.0,69215.0,0.16348507]
[1730598504609,0.1588414,69216.0,69215.0,0.29471274]
[1730598504809,0.1588414,69216.0,69215.0,0.40480661]
[1730598505021,0.1588414,69216.0,69215.0,0.29471274]
[1730598505217,0.1588414,69216.0,69215.0,0.16348507]
[1730598505619,0.16348107,69220.0,69219.0,0.072259]
[1730598506206,0.16348107,69220.0,69219.0,0.1823764]
[1730598507511,0.16348107,69220.0,69219.0,0.18237673]
[1730598507707,0.072259,69220.0,69219.0,0.18237673]
[1730598511513,0.16348107,69220.0,69219.0,0.18237673]
[1730598514817,0.16348107,69220.0,69219.0,0.18237642]
[1730598517123,0.22677903,69220.0,69219.0,0.072259]
[1730598519329,0.2267791,69220.0,69219.0,0.072259]
[1730598521021,0.27113257,69220.0,69219.0,0.072259]
[1730598524224,0.16348107,69220.0,69219.0,0.26898042]
[1730598524426,0.16348107,69220.0,69219.0,0.18237672]
[1730598529319,0.072259,69220.0,69219.0,0.18237672]
[1730598532319,0.1799105,69220.0,69219.0,0.072259]
[1730598532921,0.15199809,69220.0,69219.0,0.072259]
[1730598533120,0.1799105,69220.0,69219.0,0.072259]
[1730598535934,0.21685368,69220.0,69219.0,0.072259]
[1730598536121,0.1799105,69220.0,69219.0,0.072259]
[1730598539432,0.3608,69223.0,69219.0,0.46602293]
[1730598539634,0.3608,69223.0,69220.0,0.56721187]
[1730598539833,0.072256,69222.0,69221.0,0.24117666]
[1730598540427,0.072256,69222.0,69221.0,0.3423666]
[1730598540929,0.072256,69222.0,69221.0,0.34155362]
[1730598542526,0.072256,69222.0,69221.0,0.41381062]
[1730598542721,0.072256,69222.0,69221.0,0.31262068]
[1730598544027,0.14459468,69226.0,69225.0,0.072253]
[1730598544226,0.14459468,69226.0,69225.0,0.5552999]
[1730598544432,0.14459468,69226.0,69225.0,0.6707383]
[1730598544638,0.14459468,69226.0,69225.0,0.5552999]
[1730598544939,0.3608,69246.0,69245.0,0.072232]
[1730598545148,0.3608,69246.0,69245.0,0.40246208]
[1730598545439,0.072224,69253.0,69249.0,0.072227]
[1730598545657,0.072224,69253.0,69245.0,0.48320384]
[1730598545658,0.3608,69254.0,69250.0,0.23900801]
[1730598545827,0.072225,69252.0,69251.0,0.2414372]
[1730598546529,0.03608725,69252.0,69251.0,0.11007647]
[1730598546735,0.03608725,69252.0,69251.0,0.19646609]
[1730598546932,0.03608725,69252.0,69251.0,0.11007647]
[1730598547343,0.07223,69247.0,69246.0,0.07223]
[1730598547531,0.58752974,69247.0,69246.0,0.07223]
[1730598547730,0.68367895,69247.0,69246.0,0.07223]
[1730598550145,0.63186894,69247.0,69246.0,0.07223]
[1730598550751,0.54064687,69247.0,69246.0,0.07223]
[1730598551439,0.17984687,69247.0,69246.0,0.07223]
[1730598551657,0.54064687,69247.0,69246.0,0.07223]
[1730598554037,0.54064664,69247.0,69246.0,0.07223]
[1730598554236,0.43303,69247.0,69246.0,0.11542882]
[1730598554638,0.43303,69247.0,69246.0,0.07223]
[1730598555142,0.43303,69247.0,69246.0,0.11542882]
[1730598555531,0.43303,69247.0,69246.0,0.07223]
[1730598555733,0.43303,69247.0,69246.0,0.11542882]
[1730598556947,0.07223,69247.0,69246.0,0.11542882]
[1730598557145,0.43303,69247.0,69246.0,0.11542882]
[1730598557541,0.07223,69247.0,69246.0,0.11542882]
[1730598557737,0.43303,69247.0,69246.0,0.11542882]
[1730598558442,0.43303,69247.0,69246.0,0.07223]
[1730598559452,0.43303,69247.0,69246.0,0.11542882]
[1730598560934,0.43303,69247.0,69246.0,0.07223]
[1730598561138,0.3608,69247.0,69246.0,0.07223]
[1730598561343,0.3608,69247.0,69246.0,0.11542882]
[1730598562339,0.46841356,69247.0,69246.0,0.07223]
[1730598563652,0.61224229,69247.0,69246.0,0.07223]
[1730598563858,0.77049998,69247.0,69246.0,0.07223]
[1730598564040,0.62667125,69247.0,69246.0,0.07223]
[1730598564352,0.46841356,69247.0,69246.0,0.07223]
[1730598564653,0.62667125,69247.0,69246.0,0.07223]
[1730598565053,0.26587125,69247.0,69246.0,0.07223]
[1730598565259,0.26587125,69247.0,69246.0,0.50547]
[1730598565260,0.10761356,69247.0,69246.0,0.50547]
[1730598565444,0.25145318,69247.0,69246.0,0.84264668]
[1730598565760,0.10761356,69247.0,69246.0,0.84264668]
[1730598567357,0.06327572,69247.0,69246.0,0.84264668]
[1730598567555,0.107608,69247.0,69246.0,0.84264668]
[1730598567854,0.06327572,69247.0,69246.0,0.84264668]
[1730598568056,0.06326758,69247.0,69246.0,0.84264668]
[1730598569257,0.14383962,69253.0,69246.0,0.84264668]
[1730598569461,0.15825769,69257.0,69256.0,0.072221]
[1730598569663,0.072219,69258.0,69256.0,0.072221]
[1730598569955,0.072219,69258.0,69255.0,0.09122207]
[1730598569956,0.3608,69260.0,69255.0,0.09122207]
[1730598570162,0.3608,69260.0,69259.0,0.16344007]
[1730598573762,0.3608,69260.0,69259.0,0.20659254]
[1730598574559,0.3608,69260.0,69259.0,0.20659447]
[1730598575253,0.433017,69260.0,69259.0,0.20659447]
[1730598575447,0.433017,69260.0,69259.0,0.16344007]
[1730598575677,0.072217,69260.0,69259.0,0.16344007]
[1730598584455,0.072217,69260.0,69259.0,0.12591968]
[1730598584456,0.23161438,69260.0,69259.0,0.12591968]
[1730598586061,0.26698207,69260.0,69259.0,0.12591968]
[1730598587572,0.23161438,69260.0,69259.0,0.12591968]
[1730598588856,0.17981396,69260.0,69259.0,0.12591968]
[1730598591375,0.072217,69260.0,69259.0,0.12591968]
[1730598592674,0.072218,69259.0,69258.0,0.04323584]
[1730598592863,0.07222,69257.0,69256.0,0.04323584]
[1730598593067,0.07222,69257.0,69256.0,0.11545684]
[1730598593292,0.07222,69257.0,69256.0,0.072221]
[1730598593775,0.07222,69257.0,69256.0,0.11545684]
[1730598593958,0.07222,69257.0,69256.0,0.072221]
[1730598599378,0.10011949,69257.0,69256.0,0.072221]
[1730598599972,0.46091949,69257.0,69256.0,0.072221]
[1730598602265,0.46091949,69257.0,69255.0,0.09122207]
[1730598602266,0.072221,69256.0,69255.0,0.09122207]
[1730598602672,0.072221,69256.0,69255.0,0.16344307]
[1730598603976,0.3608,69257.0,69250.0,0.13445791]
[1730598603977,0.072226,69251.0,69250.0,0.13445791]
[1730598604280,0.072226,69251.0,69250.0,0.20668491]
[1730598605278,0.16344807,69251.0,69250.0,0.04331333]
[1730598605472,0.16344807,69251.0,69245.0,0.36212]
[1730598605473,0.072228,69249.0,69248.0,0.04331333]
[1730598605701,0.072229,69248.0,69247.0,0.04331333]
[1730598606370,0.10760717,69248.0,69246.0,0.09122207]
[1730598606569,0.23164251,69247.0,69246.0,0.09122207]
[1730598606868,0.17983717,69247.0,69246.0,0.09122207]
[1730598610483,0.15941251,69247.0,69240.0,0.16296315]
[1730598610668,0.23164351,69246.0,69245.0,0.09122207]
[1730598610870,0.17983817,69246.0,69245.0,0.09122207]
[1730598611877,0.23164351,69246.0,69245.0,0.09122207]
[1730598612776,0.17983817,69246.0,69245.0,0.09122207]
[1730598613576,0.072234,69243.0,69242.0,0.09122207]
[1730598613768,0.17984117,69243.0,69242.0,0.09122207]
[1730598614170,0.23164651,69243.0,69242.0,0.09122207]
[1730598614374,0.072234,69243.0,69242.0,0.20130215]
[1730598614580,0.03609478,69243.0,69242.0,0.20130215]
[1730598615581,0.03609478,69243.0,69242.0,0.2734261]
[1730598616474,0.03609478,69243.0,69242.0,0.16334602]
[1730598617582,0.03609478,69243.0,69242.0,0.09122207]
[1730598619879,0.03609478,69243.0,69242.0,0.16345707]
[1730598622583,0.06399764,69243.0,69242.0,0.16345707]
[1730598622795,0.14370944,69243.0,69242.0,0.16345707]
[1730598623274,0.20835275,69243.0,69242.0,0.16345707]
[1730598623471,0.28806455,69243.0,69242.0,0.16345707]
[1730598623677,0.19551839,69243.0,69242.0,0.16345707]
[1730598623876,0.14370944,69243.0,69242.0,0.16345707]
[1730598624283,0.10761466,69243.0,69242.0,0.16345707]
[1730598624575,0.06327637,69243.0,69242.0,0.16345707]
[1730598625585,0.02790286,69243.0,69242.0,0.16345707]
[1730598625790,0.10761396,69243.0,69242.0,0.16345707]
[1730598627387,0.17984697,69243.0,69242.0,0.16345707]
[1730598628982,0.072234,69243.0,69242.0,0.16345707]
[1730598633779,0.072234,69243.0,69242.0,0.27326323]
[1730598634580,0.072234,69243.0,69242.0,0.40419311]
[1730598635276,0.072234,69243.0,69242.0,0.27326323]
[1730598638192,0.13550895,69243.0,69242.0,0.16345707]
[1730598639790,0.06327495,69243.0,69242.0,0.16345707]
[1730598639991,0.13550895,69243.0,69242.0,0.16345707]
[1730598640493,0.06327495,69243.0,69242.0,0.16345707]
[1730598640697,0.02790223,69243.0,69242.0,0.37916849]
[1730598640993,0.02790223,69243.0,69242.0,0.47000849]
[1730598642392,0.0632722,69245.0,69242.0,0.39777349]
[1730598642593,0.0632722,69244.0,69243.0,0.072234]
[1730598642798,0.0632722,69244.0,69243.0,0.102334]
[1730598643002,0.0632722,69244.0,69243.0,0.75224218]
[1730598644790,0.102925,69253.0,69251.0,0.072226]
[1730598644992,0.102925,69253.0,69252.0,0.16344707]
[1730598645591,0.36168,69254.0,69252.0,0.18244414]
[1730598645811,0.3608,69254.0,69253.0,0.18176676]
[1730598646492,0.3608,69267.0,69260.0,0.072217]
[1730598646493,0.3608,69261.0,69260.0,0.072217]
[1730598646686,0.433015,69261.0,69260.0,0.22110678]
[1730598646893,0.433015,69261.0,69260.0,0.16343907]
[1730598647289,0.433015,69261.0,69260.0,0.22110644]
[1730598647500,0.433015,69261.0,69260.0,0.16343907]
[1730598647887,0.433015,69261.0,69260.0,0.22110644]
[1730598648399,0.433015,69261.0,69260.0,0.16343907]
[1730598652790,0.59240184,69261.0,69260.0,0.16343907]
[1730598653002,0.23160184,69261.0,69260.0,0.16343907]
[1730598653198,0.17980484,69261.0,69260.0,0.20613705]
[1730598653610,0.23160184,69261.0,69260.0,0.20613705]
[1730598653991,0.23160184,69261.0,69260.0,0.04269798]
[1730598654198,0.23160184,69261.0,69260.0,0.072217]
[1730598655010,0.23160184,69261.0,69260.0,0.05465321]
[1730598655497,0.124012,69261.0,69260.0,0.05465321]
[1730598655693,0.17980484,69261.0,69260.0,0.05465321]
[1730598655899,0.23160184,69261.0,69260.0,0.05465321]
[1730598659803,0.072215,69261.0,69260.0,0.05465321]
[1730598662211,0.072215,69261.0,69257.0,0.072219]
[1730598662212,0.07222,69258.0,69257.0,0.072219]
[1730598663024,0.43302,69258.0,69257.0,0.072219]
[1730598667029,0.43302,69258.0,69257.0,0.16344107]
[1730598667230,0.3608,69258.0,69257.0,0.16344107]
[1730598667528,0.3608,69258.0,69257.0,0.20664337]